{"text_format":"3","workbook":"xlsx","n_sheets":4,"sheets":["Monatsbudgetübersicht","Einkünfte","Persönliche Ausgaben","Betriebsausgaben"],"not_rendered":{"charts":1,"images":1,"defined_names":14},"read":"whole","date_system":"1900"}

{"sheet":"Monatsbudgetübersicht","index":0,"n_rows":17,"n_cols":5,"rows_kept":17,"merged":[[0,1,0,3],[0,6,1,18],[1,1,1,3],[9,1,9,4]]}
[null,"     FIRMENNAME",null,null,"DATUM"]
[null,"  MONATSBUDGET"]
[]
[null,"BUDGETSUMMEN","GESCHÄTZT","TATSÄCHLICH","DIFFERENZ"]
[null,"Einkünfte",{"$f":"Einkünfte[[#Totals],[GESCHÄTZT]]","v":{"v":63300,"d":"63,300.00"}},{"$f":"Einkünfte[[#Totals],[TATSÄCHLICH]]","v":{"v":57450,"d":"57,450.00"}},{"$f":"IF(Monatsbudgetübersicht!$B5=\"Einkünfte\",Monatsbudgetübersicht!$D5-Monatsbudgetübersicht!$C5,Monatsbudgetübersicht!$C5-Monatsbudgetübersicht!$D5)","v":{"v":-5850,"d":"-5,850.00 "}}]
[null,"Persönliche Ausgaben",{"$f":"Personalkosten[[#Totals],[GESCHÄTZT]]","v":{"v":18500,"d":"18,500.00"}},{"$f":"Personalkosten[[#Totals],[TATSÄCHLICH]]","v":{"v":14100,"d":"14,100.00"}},{"$f":"IF(Monatsbudgetübersicht!$B6=\"Einkünfte\",Monatsbudgetübersicht!$D6-Monatsbudgetübersicht!$C6,Monatsbudgetübersicht!$C6-Monatsbudgetübersicht!$D6)","v":{"v":4400,"d":"4,400.00"}}]
[null,"Betriebsausgaben",{"$f":"Betriebsausgaben[[#Totals],[GESCHÄTZT]]","v":{"v":36000,"d":"36,000.00"}},{"$f":"Betriebsausgaben[[#Totals],[TATSÄCHLICH]]","v":{"v":35530,"d":"35,530.00"}},{"$f":"IF(Monatsbudgetübersicht!$B7=\"Einkünfte\",Monatsbudgetübersicht!$D7-Monatsbudgetübersicht!$C7,Monatsbudgetübersicht!$C7-Monatsbudgetübersicht!$D7)","v":{"v":470,"d":"470.00"}}]
[null,"Saldo (Einkünfte minus Ausgaben)",{"$f":"C5-C6-C7","v":{"v":8800,"d":"8,800.00"}},{"$f":"D5-D6-D7","v":{"v":7820,"d":"7,820.00"}},{"$f":"SUBTOTAL(109,Tabelle2[DIFFERENZ])","v":{"v":-980,"d":"-980.00 "}}]
[]
[null,"WAS SIND DIE TOP 5 MEINER TATSÄCHLICHEN BETRIEBSAUSGABEN?"]
[null,"TATSÄCHLICHE KOSTEN","BETRAG","% DER AUSGABEN","15 % ABZUG"]
[null,{"$f":"INDEX(Betriebsausgaben[],MATCH(Top5Ausgaben[[#This Row],[BETRAG]],Betriebsausgaben[TOP 5-BETRAG],0),1)","v":"Wartung und Reparaturen"},{"$f":"LARGE(Betriebsausgaben[TOP 5-BETRAG],1)","v":4600.000014},{"$f":"Top5Ausgaben[[#This Row],[BETRAG]]/$D$7","v":{"v":0.12946805555868282,"d":"12.9%"}},{"$f":"Top5Ausgaben[[#This Row],[BETRAG]]*0.15","v":690.0000021}]
[null,{"$f":"INDEX(Betriebsausgaben[],MATCH(Top5Ausgaben[[#This Row],[BETRAG]],Betriebsausgaben[TOP 5-BETRAG],0),1)","v":"Betriebsmittel"},{"$f":"LARGE(Betriebsausgaben[TOP 5-BETRAG],2)","v":4500.00002},{"$f":"Top5Ausgaben[[#This Row],[BETRAG]]/$D$7","v":{"v":0.12665353278919225,"d":"12.7%"}},{"$f":"Top5Ausgaben[[#This Row],[BETRAG]]*0.15","v":675.000003}]
[null,{"$f":"INDEX(Betriebsausgaben[],MATCH(Top5Ausgaben[[#This Row],[BETRAG]],Betriebsausgaben[TOP 5-BETRAG],0),1)","v":"Miete oder Hypothek"},{"$f":"LARGE(Betriebsausgaben[TOP 5-BETRAG],3)","v":4500.000017},{"$f":"Top5Ausgaben[[#This Row],[BETRAG]]/$D$7","v":{"v":0.12665353270475654,"d":"12.7%"}},{"$f":"Top5Ausgaben[[#This Row],[BETRAG]]*0.15","v":675.00000255}]
[null,{"$f":"INDEX(Betriebsausgaben[],MATCH(Top5Ausgaben[[#This Row],[BETRAG]],Betriebsausgaben[TOP 5-BETRAG],0),1)","v":"Steuern"},{"$f":"LARGE(Betriebsausgaben[TOP 5-BETRAG],4)","v":3200.000021},{"$f":"Top5Ausgaben[[#This Row],[BETRAG]]/$D$7","v":{"v":0.09006473461863214,"d":"9.0%"}},{"$f":"Top5Ausgaben[[#This Row],[BETRAG]]*0.15","v":480.00000314999994}]
[null,{"$f":"INDEX(Betriebsausgaben[],MATCH(Top5Ausgaben[[#This Row],[BETRAG]],Betriebsausgaben[TOP 5-BETRAG],0),1)","v":"Werbung"},{"$f":"LARGE(Betriebsausgaben[TOP 5-BETRAG],5)","v":2500.000005},{"$f":"Top5Ausgaben[[#This Row],[BETRAG]]/$D$7","v":{"v":0.07036307359977484,"d":"7.0%"}},{"$f":"Top5Ausgaben[[#This Row],[BETRAG]]*0.15","v":375.00000074999997}]
[null,"Summe",{"$f":"SUBTOTAL(109,Top5Ausgaben[BETRAG])","v":{"v":19300.000077000004,"d":"19,300.00"}},{"$f":"SUBTOTAL(109,Top5Ausgaben[% DER AUSGABEN])","v":{"v":0.5432029292710385,"d":"54.3%"}},{"$f":"SUBTOTAL(109,Top5Ausgaben[15 % ABZUG])","v":{"v":2895.0000115499997,"d":"2,895.00"}}]

{"sheet":"Einkünfte","index":1,"n_rows":8,"n_cols":6,"rows_kept":8,"merged":[[0,1,0,3],[1,1,1,3]]}
[null,"     FIRMENNAME",null,null,"DATUM","DATUM"]
[null,"  MONATSBUDGET"]
[]
[null,"EINNAHMEN","GESCHÄTZT","TATSÄCHLICH","TOP 5-BETRAG","DIFFERENZ"]
[null,"Nettoumsätze",60000,54000,{"$f":"Einkünfte[[#This Row],[TATSÄCHLICH]]+(10^-6)*ROW(Einkünfte[[#This Row],[TATSÄCHLICH]])","v":54000.000005},{"$f":"Einkünfte[[#This Row],[TATSÄCHLICH]]-Einkünfte[[#This Row],[GESCHÄTZT]]","v":-6000}]
[null,"Zinseinkünfte",3000,3000,{"$f":"Einkünfte[[#This Row],[TATSÄCHLICH]]+(10^-6)*ROW(Einkünfte[[#This Row],[TATSÄCHLICH]])","v":3000.000006},{"$f":"Einkünfte[[#This Row],[TATSÄCHLICH]]-Einkünfte[[#This Row],[GESCHÄTZT]]","v":0}]
[null,"Verkauf von Vermögenswerten (Gewinn/Verlust)",300,450,{"$f":"Einkünfte[[#This Row],[TATSÄCHLICH]]+(10^-6)*ROW(Einkünfte[[#This Row],[TATSÄCHLICH]])","v":450.000007},{"$f":"Einkünfte[[#This Row],[TATSÄCHLICH]]-Einkünfte[[#This Row],[GESCHÄTZT]]","v":150}]
[null,"Einkünfte gesamt",{"$f":"SUBTOTAL(109,Einkünfte[GESCHÄTZT])","v":63300},{"$f":"SUBTOTAL(109,Einkünfte[TATSÄCHLICH])","v":57450},null,{"$f":"SUBTOTAL(109,Einkünfte[DIFFERENZ])","v":-5850}]

{"sheet":"Persönliche Ausgaben","index":2,"n_rows":19,"n_cols":6,"rows_kept":19,"merged":[[0,1,0,3],[1,1,1,3]]}
[null,"     FIRMENNAME",null,null,"DATUM","DATUM"]
[null,"  MONATSBUDGET"]
[]
[null,"PERSONALAUSGABEN","GESCHÄTZT","TATSÄCHLICH","TOP 5-BETRAG","DIFFERENZ"]
[null,"Gehälter",9500,9600,{"$f":"Personalkosten[[#This Row],[TATSÄCHLICH]]+(10^-6)*ROW(Personalkosten[[#This Row],[TATSÄCHLICH]])","v":9600.000005},{"$f":"Personalkosten[[#This Row],[GESCHÄTZT]]-Personalkosten[[#This Row],[TATSÄCHLICH]]","v":-100}]
[null,"Mitarbeiterboni",4000,0,{"$f":"Personalkosten[[#This Row],[TATSÄCHLICH]]+(10^-6)*ROW(Personalkosten[[#This Row],[TATSÄCHLICH]])","v":6e-06},{"$f":"Personalkosten[[#This Row],[GESCHÄTZT]]-Personalkosten[[#This Row],[TATSÄCHLICH]]","v":4000}]
[null,"Kommission",5000,4500,{"$f":"Personalkosten[[#This Row],[TATSÄCHLICH]]+(10^-6)*ROW(Personalkosten[[#This Row],[TATSÄCHLICH]])","v":4500.000007},{"$f":"Personalkosten[[#This Row],[GESCHÄTZT]]-Personalkosten[[#This Row],[TATSÄCHLICH]]","v":500}]
[null,"Persönliche Ausgaben gesamt",{"$f":"SUBTOTAL(109,Personalkosten[GESCHÄTZT])","v":18500},{"$f":"SUBTOTAL(109,Personalkosten[TATSÄCHLICH])","v":14100},null,{"$f":"SUBTOTAL(109,Personalkosten[DIFFERENZ])","v":4400}]
{"$rows_empty":10}
[{"$nulls":5}," "]

{"sheet":"Betriebsausgaben","index":3,"n_rows":25,"n_cols":11,"rows_kept":25,"merged":[[0,1,0,3],[1,1,1,3]]}
[null,"     FIRMENNAME",null,null,"DATUM","DATUM"]
[null,"  MONATSBUDGET"]
[]
[null,"BETRIEBSAUSGABEN","GESCHÄTZT","TATSÄCHLICH","TOP 5-BETRAG","DIFFERENZ"]
[null,"Werbung",{"v":3000,"d":"3,000.00"},{"v":2500,"d":"2,500.00"},{"$f":"Betriebsausgaben[[#This Row],[TATSÄCHLICH]]+(10^-6)*ROW(Betriebsausgaben[[#This Row],[TATSÄCHLICH]])","v":{"v":2500.000005,"d":"2,500.00"}},{"$f":"Betriebsausgaben[[#This Row],[GESCHÄTZT]]-Betriebsausgaben[[#This Row],[TATSÄCHLICH]]","v":{"v":500,"d":"500.00"}}]
[null,"Uneinbringliche Forderungen",{"v":2000,"d":"2,000.00"},{"v":2000,"d":"2,000.00"},{"$f":"Betriebsausgaben[[#This Row],[TATSÄCHLICH]]+(10^-6)*ROW(Betriebsausgaben[[#This Row],[TATSÄCHLICH]])","v":{"v":2000.000006,"d":"2,000.00"}},{"$f":"Betriebsausgaben[[#This Row],[GESCHÄTZT]]-Betriebsausgaben[[#This Row],[TATSÄCHLICH]]","v":{"v":0,"d":"0.00"}}]
[null,"Skonti",{"v":1500,"d":"1,500.00"},{"v":2175,"d":"2,175.00"},{"$f":"Betriebsausgaben[[#This Row],[TATSÄCHLICH]]+(10^-6)*ROW(Betriebsausgaben[[#This Row],[TATSÄCHLICH]])","v":{"v":2175.000007,"d":"2,175.00"}},{"$f":"Betriebsausgaben[[#This Row],[GESCHÄTZT]]-Betriebsausgaben[[#This Row],[TATSÄCHLICH]]","v":{"v":-675,"d":"-675.00 "}}]
[null,"Lieferkosten",{"v":2000,"d":"2,000.00"},{"v":1500,"d":"1,500.00"},{"$f":"Betriebsausgaben[[#This Row],[TATSÄCHLICH]]+(10^-6)*ROW(Betriebsausgaben[[#This Row],[TATSÄCHLICH]])","v":{"v":1500.000008,"d":"1,500.00"}},{"$f":"Betriebsausgaben[[#This Row],[GESCHÄTZT]]-Betriebsausgaben[[#This Row],[TATSÄCHLICH]]","v":{"v":500,"d":"500.00"}}]
[null,"Abschreibung",{"v":1000,"d":"1,000.00"},{"v":1000,"d":"1,000.00"},{"$f":"Betriebsausgaben[[#This Row],[TATSÄCHLICH]]+(10^-6)*ROW(Betriebsausgaben[[#This Row],[TATSÄCHLICH]])","v":{"v":1000.000009,"d":"1,000.00"}},{"$f":"Betriebsausgaben[[#This Row],[GESCHÄTZT]]-Betriebsausgaben[[#This Row],[TATSÄCHLICH]]","v":{"v":0,"d":"0.00"}}]
[null,"Abgaben und Daueraufträge",{"v":500,"d":"500.00"},{"v":525,"d":"525.00"},{"$f":"Betriebsausgaben[[#This Row],[TATSÄCHLICH]]+(10^-6)*ROW(Betriebsausgaben[[#This Row],[TATSÄCHLICH]])","v":{"v":525.00001,"d":"525.00"}},{"$f":"Betriebsausgaben[[#This Row],[GESCHÄTZT]]-Betriebsausgaben[[#This Row],[TATSÄCHLICH]]","v":{"v":-25,"d":"-25.00 "}}]
[null,"Versicherungen",{"v":1300,"d":"1,300.00"},{"v":1275,"d":"1,275.00"},{"$f":"Betriebsausgaben[[#This Row],[TATSÄCHLICH]]+(10^-6)*ROW(Betriebsausgaben[[#This Row],[TATSÄCHLICH]])","v":{"v":1275.000011,"d":"1,275.00"}},{"$f":"Betriebsausgaben[[#This Row],[GESCHÄTZT]]-Betriebsausgaben[[#This Row],[TATSÄCHLICH]]","v":{"v":25,"d":"25.00"}}]
[null,"Zinsen",{"v":2000,"d":"2,000.00"},{"v":2200,"d":"2,200.00"},{"$f":"Betriebsausgaben[[#This Row],[TATSÄCHLICH]]+(10^-6)*ROW(Betriebsausgaben[[#This Row],[TATSÄCHLICH]])","v":{"v":2200.000012,"d":"2,200.00"}},{"$f":"Betriebsausgaben[[#This Row],[GESCHÄTZT]]-Betriebsausgaben[[#This Row],[TATSÄCHLICH]]","v":{"v":-200,"d":"-200.00 "}}]
[null,"Rechts- und Beratungskosten",{"v":1000,"d":"1,000.00"},{"v":800,"d":"800.00"},{"$f":"Betriebsausgaben[[#This Row],[TATSÄCHLICH]]+(10^-6)*ROW(Betriebsausgaben[[#This Row],[TATSÄCHLICH]])","v":{"v":800.000013,"d":"800.00"}},{"$f":"Betriebsausgaben[[#This Row],[GESCHÄTZT]]-Betriebsausgaben[[#This Row],[TATSÄCHLICH]]","v":{"v":200,"d":"200.00"}}]
[null,"Wartung und Reparaturen",{"v":4500,"d":"4,500.00"},{"v":4600,"d":"4,600.00"},{"$f":"Betriebsausgaben[[#This Row],[TATSÄCHLICH]]+(10^-6)*ROW(Betriebsausgaben[[#This Row],[TATSÄCHLICH]])","v":{"v":4600.000014,"d":"4,600.00"}},{"$f":"Betriebsausgaben[[#This Row],[GESCHÄTZT]]-Betriebsausgaben[[#This Row],[TATSÄCHLICH]]","v":{"v":-100,"d":"-100.00 "}}]
[null,"Büromaterial",{"v":800,"d":"800.00"},{"v":750,"d":"750.00"},{"$f":"Betriebsausgaben[[#This Row],[TATSÄCHLICH]]+(10^-6)*ROW(Betriebsausgaben[[#This Row],[TATSÄCHLICH]])","v":{"v":750.000015,"d":"750.00"}},{"$f":"Betriebsausgaben[[#This Row],[GESCHÄTZT]]-Betriebsausgaben[[#This Row],[TATSÄCHLICH]]","v":{"v":50,"d":"50.00"}}]
[null,"Porti",{"v":400,"d":"400.00"},{"v":350,"d":"350.00"},{"$f":"Betriebsausgaben[[#This Row],[TATSÄCHLICH]]+(10^-6)*ROW(Betriebsausgaben[[#This Row],[TATSÄCHLICH]])","v":{"v":350.000016,"d":"350.00"}},{"$f":"Betriebsausgaben[[#This Row],[GESCHÄTZT]]-Betriebsausgaben[[#This Row],[TATSÄCHLICH]]","v":{"v":50,"d":"50.00"}}]
[null,"Miete oder Hypothek",{"v":4100,"d":"4,100.00"},{"v":4500,"d":"4,500.00"},{"$f":"Betriebsausgaben[[#This Row],[TATSÄCHLICH]]+(10^-6)*ROW(Betriebsausgaben[[#This Row],[TATSÄCHLICH]])","v":{"v":4500.000017,"d":"4,500.00"}},{"$f":"Betriebsausgaben[[#This Row],[GESCHÄTZT]]-Betriebsausgaben[[#This Row],[TATSÄCHLICH]]","v":{"v":-400,"d":"-400.00 "}}]
[null,"Vertriebsausgaben",{"v":350,"d":"350.00"},{"v":400,"d":"400.00"},{"$f":"Betriebsausgaben[[#This Row],[TATSÄCHLICH]]+(10^-6)*ROW(Betriebsausgaben[[#This Row],[TATSÄCHLICH]])","v":{"v":400.000018,"d":"400.00"}},{"$f":"Betriebsausgaben[[#This Row],[GESCHÄTZT]]-Betriebsausgaben[[#This Row],[TATSÄCHLICH]]","v":{"v":-50,"d":"-50.00 "}}]
[null,"Versand und Lagerhaltung",{"v":900,"d":"900.00"},{"v":840,"d":"840.00"},{"$f":"Betriebsausgaben[[#This Row],[TATSÄCHLICH]]+(10^-6)*ROW(Betriebsausgaben[[#This Row],[TATSÄCHLICH]])","v":{"v":840.000019,"d":"840.00"}},{"$f":"Betriebsausgaben[[#This Row],[GESCHÄTZT]]-Betriebsausgaben[[#This Row],[TATSÄCHLICH]]","v":{"v":60,"d":"60.00"}},{"$nulls":4}," "]
[null,"Betriebsmittel",{"v":5000,"d":"5,000.00"},{"v":4500,"d":"4,500.00"},{"$f":"Betriebsausgaben[[#This Row],[TATSÄCHLICH]]+(10^-6)*ROW(Betriebsausgaben[[#This Row],[TATSÄCHLICH]])","v":{"v":4500.00002,"d":"4,500.00"}},{"$f":"Betriebsausgaben[[#This Row],[GESCHÄTZT]]-Betriebsausgaben[[#This Row],[TATSÄCHLICH]]","v":{"v":500,"d":"500.00"}}]
[null,"Steuern",{"v":3000,"d":"3,000.00"},{"v":3200,"d":"3,200.00"},{"$f":"Betriebsausgaben[[#This Row],[TATSÄCHLICH]]+(10^-6)*ROW(Betriebsausgaben[[#This Row],[TATSÄCHLICH]])","v":{"v":3200.000021,"d":"3,200.00"}},{"$f":"Betriebsausgaben[[#This Row],[GESCHÄTZT]]-Betriebsausgaben[[#This Row],[TATSÄCHLICH]]","v":{"v":-200,"d":"-200.00 "}}]
[null,"Telefon",{"v":250,"d":"250.00"},{"v":280,"d":"280.00"},{"$f":"Betriebsausgaben[[#This Row],[TATSÄCHLICH]]+(10^-6)*ROW(Betriebsausgaben[[#This Row],[TATSÄCHLICH]])","v":{"v":280.000022,"d":"280.00"}},{"$f":"Betriebsausgaben[[#This Row],[GESCHÄTZT]]-Betriebsausgaben[[#This Row],[TATSÄCHLICH]]","v":{"v":-30,"d":"-30.00 "}}]
[null,"Nebenkosten",{"v":1400,"d":"1,400.00"},{"v":1385,"d":"1,385.00"},{"$f":"Betriebsausgaben[[#This Row],[TATSÄCHLICH]]+(10^-6)*ROW(Betriebsausgaben[[#This Row],[TATSÄCHLICH]])","v":{"v":1385.000023,"d":"1,385.00"}},{"$f":"Betriebsausgaben[[#This Row],[GESCHÄTZT]]-Betriebsausgaben[[#This Row],[TATSÄCHLICH]]","v":{"v":15,"d":"15.00"}}]
[null,"Sonstiges",{"v":1000,"d":"1,000.00"},{"v":750,"d":"750.00"},{"$f":"Betriebsausgaben[[#This Row],[TATSÄCHLICH]]+(10^-6)*ROW(Betriebsausgaben[[#This Row],[TATSÄCHLICH]])","v":{"v":750.000024,"d":"750.00"}},{"$f":"Betriebsausgaben[[#This Row],[GESCHÄTZT]]-Betriebsausgaben[[#This Row],[TATSÄCHLICH]]","v":{"v":250,"d":"250.00"}}]
[null,"Summe Betriebsausgaben",{"$f":"SUBTOTAL(109,Betriebsausgaben[GESCHÄTZT])","v":{"v":36000,"d":"36,000.00"}},{"$f":"SUBTOTAL(109,Betriebsausgaben[TATSÄCHLICH])","v":{"v":35530,"d":"35,530.00"}},null,{"$f":"SUBTOTAL(109,Betriebsausgaben[DIFFERENZ])","v":{"v":470,"d":"470.00"}}]